[Event "*** Titled Tuesday 3|2 Blitz"]
[Site "Chess.com"]
[Date "2016.07.05"]
[Round "9"]
[White "RobertRis"]
[Black "Gajuchess"]
[Result "0-1"]
[WhiteElo "2418"]
[BlackElo "2520"]
[TimeControl "180+2"]
[EndTime "12:48:14 PDT"]
[Termination "Gajuchess won by checkmate"]

1. Nf3 {[%clk 0:03:01.9]} 1... d5 {[%clk 0:03:00.2]} 2. g3 {[%clk 0:03:02.2]}
2... h5 {[%clk 0:03:01.1]} 3. c4 {[%clk 0:03:00.6]} 3... d4 {[%clk 0:03:01]} 4.
b4 {[%clk 0:02:59.2]} 4... h4 {[%clk 0:03:01.3]} 5. Nxh4 {[%clk 0:02:59.1]} 5...
Rxh4 {[%clk 0:03:02.2]} 6. gxh4 {[%clk 0:02:59.8]} 6... e5 {[%clk 0:03:04.1]} 7.
e3 {[%clk 0:02:52.8]} 7... Qxh4 {[%clk 0:03:05.3]} 8. exd4 {[%clk 0:02:50.6]}
8... Qe4+ {[%clk 0:03:05.2]} 9. Qe2 {[%clk 0:02:49]} 9... Qxh1 {[%clk
0:03:05.9]} 10. Qxe5+ {[%clk 0:02:49.5]} 10... Ne7 {[%clk 0:02:58]} 11. Nc3
{[%clk 0:02:27.5]} 11... Bh3 {[%clk 0:02:58.3]} 12. Qe2 {[%clk 0:02:28.4]} 12...
Nc6 {[%clk 0:02:59]} 13. Ba3 {[%clk 0:02:20.2]} 13... Nxd4 {[%clk 0:02:56.8]}
14. Qd3 {[%clk 0:02:21.3]} 14... Nf3+ {[%clk 0:02:54.8]} 15. Ke2 {[%clk
0:02:17]} 15... Bg4 {[%clk 0:02:51.1]} 16. Bh3 {[%clk 0:02:09.3]} 16... Nd4+
{[%clk 0:02:48.5]} 17. Ke3 {[%clk 0:02:06.9]} 17... Qf3+ {[%clk 0:02:43.3]} 18.
Kxd4 {[%clk 0:02:07.8]} 18... Nc6# {[%clk 0:02:44.1]} 0-1

[Event "*** Titled Tuesday 3|2 Blitz"]
[Site "Chess.com"]
[Date "2016.07.05"]
[Round "9"]
[White "BellJackson95"]
[Black "Saitama_Hero"]
[Result "1-0"]
[WhiteElo "2175"]
[BlackElo "2096"]
[TimeControl "180+2"]
[EndTime "12:49:43 PDT"]
[Termination "BellJackson95 won by resignation"]

1. d4 {[%clk 0:03:01.9]} 1... Nf6 {[%clk 0:02:59.7]} 2. Nc3 {[%clk 0:03:02.2]}
2... d5 {[%clk 0:02:59.9]} 3. Bf4 {[%clk 0:03:01.8]} 3... e6 {[%clk 0:02:57.9]}
4. e3 {[%clk 0:03:01.9]} 4... Bb4 {[%clk 0:02:55.8]} 5. Ne2 {[%clk 0:02:59.9]}
5... c5 {[%clk 0:02:56.5]} 6. a3 {[%clk 0:03:00.1]} 6... Bxc3+ {[%clk
0:02:53.7]} 7. Nxc3 {[%clk 0:03:02]} 7... cxd4 {[%clk 0:02:53.9]} 8. exd4 {[%clk
0:03:03.9]} 8... O-O {[%clk 0:02:53.8]} 9. Bd3 {[%clk 0:02:59.3]} 9... Nc6
{[%clk 0:02:54.1]} 10. O-O {[%clk 0:02:42.3]} 10... h6 {[%clk 0:02:45.2]} 11.
Be5 {[%clk 0:02:30.4]} 11... Nxe5 {[%clk 0:02:41]} 12. dxe5 {[%clk 0:02:32.3]}
12... Nd7 {[%clk 0:02:41.3]} 13. Re1 {[%clk 0:02:18.1]} 13... b6 {[%clk
0:02:39.2]} 14. f4 {[%clk 0:02:01.6]} 14... Nc5 {[%clk 0:02:39.1]} 15. f5 {[%clk
0:01:51.7]} 15... Bb7 {[%clk 0:02:34.9]} 16. f6 {[%clk 0:01:41.4]} 16... g6
{[%clk 0:02:17]} 17. Qd2 {[%clk 0:01:29.9]} 17... Kh7 {[%clk 0:02:15.4]} 18. Re3
{[%clk 0:01:15.5]} 18... d4 {[%clk 0:02:13.1]} 19. Rh3 {[%clk 0:01:11.9]} 1-0

[Event "*** Titled Tuesday 3|2 Blitz"]
[Site "Chess.com"]
[Date "2016.07.05"]
[Round "9"]
[White "macko06"]
[Black "cabalista"]
[Result "0-1"]
[WhiteElo "2249"]
[BlackElo "2432"]
[TimeControl "180+2"]
[EndTime "12:50:06 PDT"]
[Termination "cabalista won by resignation"]

1. d4 {[%clk 0:03:01.9]} 1... Nf6 {[%clk 0:02:59.3]} 2. c4 {[%clk 0:02:50.7]}
2... g6 {[%clk 0:02:59.1]} 3. Nc3 {[%clk 0:02:51.5]} 3... Bg7 {[%clk 0:02:59.6]}
4. e4 {[%clk 0:02:51.6]} 4... d6 {[%clk 0:02:58.9]} 5. Nf3 {[%clk 0:02:52.5]}
5... O-O {[%clk 0:02:59.4]} 6. Be2 {[%clk 0:02:54]} 6... Nbd7 {[%clk 0:02:59.4]}
7. Be3 {[%clk 0:02:50.7]} 7... e5 {[%clk 0:02:59.4]} 8. d5 {[%clk 0:02:51.9]}
8... a5 {[%clk 0:02:53.6]} 9. Nd2 {[%clk 0:02:52.6]} 9... Ne8 {[%clk 0:02:53.6]}
10. O-O {[%clk 0:02:53.1]} 10... Bf6 {[%clk 0:02:47.6]} 11. f3 {[%clk 0:02:41]}
11... Bg5 {[%clk 0:02:46.9]} 12. Bf2 {[%clk 0:02:42.2]} 12... f5 {[%clk
0:02:45.1]} 13. a3 {[%clk 0:02:42.7]} 13... Ndf6 {[%clk 0:02:43.2]} 14. b3
{[%clk 0:02:35.3]} 14... Nh5 {[%clk 0:02:40.7]} 15. Qc2 {[%clk 0:02:29.1]} 15...
Nf4 {[%clk 0:02:25.9]} 16. b4 {[%clk 0:02:27.5]} 16... Bh6 {[%clk 0:02:15.6]}
17. c5 {[%clk 0:02:24.2]} 17... Qg5 {[%clk 0:02:15.3]} 18. Bg3 {[%clk
0:01:59.5]} 18... Nxe2+ {[%clk 0:02:12.2]} 19. Nxe2 {[%clk 0:02:01.4]} 19...
Qxd2 {[%clk 0:02:12.4]} 20. Qxd2 {[%clk 0:02:03.3]} 20... Bxd2 {[%clk
0:02:12.2]} 21. cxd6 {[%clk 0:02:05.2]} 21... cxd6 {[%clk 0:02:12.1]} 22. Rfd1
{[%clk 0:02:00.8]} 22... Be3+ {[%clk 0:02:11.8]} 23. Kh1 {[%clk 0:01:54.2]}
23... fxe4 {[%clk 0:02:11.6]} 24. fxe4 {[%clk 0:01:56.1]} 24... Bg4 {[%clk
0:02:04.5]} 25. Rd3 {[%clk 0:01:49.5]} 25... Bb6 {[%clk 0:01:52.5]} 26. bxa5
{[%clk 0:01:48.7]} 26... Bxe2 {[%clk 0:01:52.7]} 27. Rd2 {[%clk 0:01:47.9]}
27... Bd4 {[%clk 0:01:52.9]} 0-1

[Event "*** Titled Tuesday 3|2 Blitz"]
[Site "Chess.com"]
[Date "2016.07.05"]
[Round "9"]
[White "FLchessplayer"]
[Black "FearlessKing64"]
[Result "0-1"]
[WhiteElo "2029"]
[BlackElo "2117"]
[TimeControl "180+2"]
[EndTime "12:50:42 PDT"]
[Termination "FearlessKing64 won by resignation"]

1. e4 {[%clk 0:03:01.2]} 1... c5 {[%clk 0:03:00.4]} 2. Nf3 {[%clk 0:03:01.2]}
2... d6 {[%clk 0:03:01.5]} 3. c3 {[%clk 0:03:02.4]} 3... Nf6 {[%clk 0:03:01.7]}
4. Bd3 {[%clk 0:03:03.2]} 4... e6 {[%clk 0:03:02.6]} 5. O-O {[%clk 0:03:04.3]}
5... Be7 {[%clk 0:03:04]} 6. Re1 {[%clk 0:03:05.4]} 6... O-O {[%clk 0:03:05.1]}
7. h3 {[%clk 0:03:06.6]} 7... Nc6 {[%clk 0:03:06.4]} 8. Bc2 {[%clk 0:03:07.7]}
8... b6 {[%clk 0:02:59.9]} 9. d3 {[%clk 0:03:08.5]} 9... Bb7 {[%clk 0:03:00.9]}
10. Nbd2 {[%clk 0:03:09.7]} 10... Rc8 {[%clk 0:02:59]} 11. Nf1 {[%clk
0:03:10.4]} 11... Qd7 {[%clk 0:02:54.8]} 12. Ng3 {[%clk 0:03:11.3]} 12... b5
{[%clk 0:02:50.5]} 13. Qe2 {[%clk 0:03:09.1]} 13... b4 {[%clk 0:02:51.8]} 14.
Bd2 {[%clk 0:03:06.9]} 14... a5 {[%clk 0:02:52.6]} 15. a3 {[%clk 0:03:05.5]}
15... Ba6 {[%clk 0:02:36]} 16. axb4 {[%clk 0:03:02.4]} 16... cxb4 {[%clk
0:02:36.4]} 17. Bb3 {[%clk 0:02:57.9]} 17... Ne5 {[%clk 0:02:32]} 18. Nxe5
{[%clk 0:02:54.7]} 18... dxe5 {[%clk 0:02:32.1]} 19. c4 {[%clk 0:02:45.8]} 19...
Rfd8 {[%clk 0:02:25.1]} 20. Bc2 {[%clk 0:02:45]} 20... Bxc4 {[%clk 0:02:05.6]}
21. dxc4 {[%clk 0:02:38.8]} 21... Qxd2 {[%clk 0:02:05.4]} 22. Qxd2 {[%clk
0:02:35.2]} 22... Rxd2 {[%clk 0:02:05.9]} 23. Ba4 {[%clk 0:02:29.4]} 23... Rxc4
{[%clk 0:01:59.9]} 24. Bb5 {[%clk 0:02:29.7]} 24... Rc5 {[%clk 0:01:45.2]} 25.
Rxa5 {[%clk 0:02:26.5]} 25... Bd8 {[%clk 0:01:42.3]} 26. Rea1 {[%clk 0:02:21.7]}
26... Bxa5 {[%clk 0:01:39.6]} 27. Rxa5 {[%clk 0:02:22.6]} 27... h6 {[%clk
0:01:29.5]} 28. b3 {[%clk 0:02:19.7]} 28... Rc1+ {[%clk 0:01:22.7]} 29. Kh2
{[%clk 0:02:19.4]} 29... Rxf2 {[%clk 0:01:22.2]} 30. Ra8+ {[%clk 0:02:13.9]}
30... Kh7 {[%clk 0:01:22.2]} 31. Nh1 {[%clk 0:02:07.3]} 31... Rb2 {[%clk
0:01:19.6]} 32. Bc4 {[%clk 0:02:07]} 32... Rcc2 {[%clk 0:01:18.1]} 0-1

[Event "*** Titled Tuesday 3|2 Blitz"]
[Site "Chess.com"]
[Date "2016.07.05"]
[Round "9"]
[White "saraswathii"]
[Black "AdamHunt1"]
[Result "0-1"]
[WhiteElo "2033"]
[BlackElo "2395"]
[TimeControl "180+2"]
[EndTime "12:51:04 PDT"]
[Termination "AdamHunt1 won by resignation"]

1. e4 {[%clk 0:03:01.9]} 1... c5 {[%clk 0:03:00.4]} 2. Nf3 {[%clk 0:03:00.3]}
2... e6 {[%clk 0:03:01.7]} 3. d3 {[%clk 0:03:00]} 3... g6 {[%clk 0:03:00.1]} 4.
g3 {[%clk 0:02:58.6]} 4... Bg7 {[%clk 0:03:01.2]} 5. Bg2 {[%clk 0:02:59.3]} 5...
Nc6 {[%clk 0:03:02.1]} 6. O-O {[%clk 0:02:59.5]} 6... Nge7 {[%clk 0:03:01.5]} 7.
c3 {[%clk 0:02:59.9]} 7... d5 {[%clk 0:03:01.2]} 8. Qe2 {[%clk 0:03:00.6]} 8...
O-O {[%clk 0:03:00.8]} 9. e5 {[%clk 0:03:01.3]} 9... d4 {[%clk 0:02:59.3]} 10.
h4 {[%clk 0:02:58.9]} 10... Qc7 {[%clk 0:02:59.1]} 11. Re1 {[%clk 0:02:58.5]}
11... b6 {[%clk 0:02:56.1]} 12. c4 {[%clk 0:02:57.9]} 12... Bb7 {[%clk
0:02:56.2]} 13. Bf4 {[%clk 0:02:57.5]} 13... a6 {[%clk 0:02:43.1]} 14. Nbd2
{[%clk 0:02:57.8]} 14... Nb4 {[%clk 0:02:36.5]} 15. Nf1 {[%clk 0:02:50.9]} 15...
b5 {[%clk 0:02:33.7]} 16. a3 {[%clk 0:02:47.3]} 16... Nbc6 {[%clk 0:02:34.2]}
17. b3 {[%clk 0:02:47.4]} 17... Na5 {[%clk 0:02:34.3]} 18. Rab1 {[%clk 0:02:48]}
18... bxc4 {[%clk 0:02:32.9]} 19. bxc4 {[%clk 0:02:43]} 19... Bc6 {[%clk
0:02:34]} 20. N1h2 {[%clk 0:02:38.5]} 20... h5 {[%clk 0:02:33.5]} 21. g4 {[%clk
0:02:36]} 21... hxg4 {[%clk 0:02:29.5]} 22. Nxg4 {[%clk 0:02:36.7]} 22... Nf5
{[%clk 0:02:30.7]} 23. h5 {[%clk 0:02:34.9]} 23... gxh5 {[%clk 0:02:30.3]} 24.
Nf6+ {[%clk 0:02:35.7]} 24... Bxf6 {[%clk 0:02:31]} 25. exf6 {[%clk 0:02:25]}
25... Qxf4 {[%clk 0:02:31.6]} 26. Ne5 {[%clk 0:02:25.3]} 26... Bxg2 {[%clk
0:02:23.6]} 27. Kxg2 {[%clk 0:02:20]} 27... Ne3+ {[%clk 0:02:18.9]} 28. fxe3
{[%clk 0:02:17.2]} 28... Qxe5 {[%clk 0:02:20.1]} 29. Kh1 {[%clk 0:02:05.1]}
29... Kh7 {[%clk 0:02:16.6]} 30. Qf3 {[%clk 0:02:01.9]} 30... dxe3 {[%clk
0:02:01.3]} 31. Rxe3 {[%clk 0:01:56.7]} 31... Qf5 {[%clk 0:02:02.6]} 32. Qe2
{[%clk 0:01:53.7]} 32... Rg8 {[%clk 0:01:56.6]} 33. Rf1 {[%clk 0:01:51.3]} 33...
Qg4 {[%clk 0:01:55.9]} 34. Qh2 {[%clk 0:01:46.7]} 34... Rg5 {[%clk 0:01:49.2]}
35. Re4 {[%clk 0:01:43.6]} 35... Qg3 {[%clk 0:01:47.3]} 0-1

[Event "*** Titled Tuesday 3|2 Blitz"]
[Site "Chess.com"]
[Date "2016.07.05"]
[Round "9"]
[White "Journey_to_GrandMaster_YT"]
[Black "GeorgMeier"]
[Result "1-0"]
[WhiteElo "2435"]
[BlackElo "2647"]
[TimeControl "180+2"]
[EndTime "12:51:54 PDT"]
[Termination "Journey_to_GrandMaster_YT won on time"]

1. d4 {[%clk 0:03:01.9]} 1... e6 {[%clk 0:03:01.9]} 2. Nf3 {[%clk 0:03:03.2]}
2... d5 {[%clk 0:02:59.7]} 3. e3 {[%clk 0:03:03.1]} 3... Nf6 {[%clk 0:03:01.1]}
4. Bd3 {[%clk 0:03:04]} 4... c5 {[%clk 0:03:01.9]} 5. b3 {[%clk 0:03:04]} 5...
Nc6 {[%clk 0:03:03]} 6. Bb2 {[%clk 0:03:03.2]} 6... Bd6 {[%clk 0:03:04]} 7. O-O
{[%clk 0:03:01.7]} 7... O-O {[%clk 0:03:05.1]} 8. a3 {[%clk 0:03:02.8]} 8... Qe7
{[%clk 0:03:05.9]} 9. Ne5 {[%clk 0:03:01.4]} 9... Bd7 {[%clk 0:03:05.8]} 10. Nd2
{[%clk 0:03:01.8]} 10... Rfc8 {[%clk 0:03:06.5]} 11. Rc1 {[%clk 0:03:00.4]}
11... cxd4 {[%clk 0:03:05.5]} 12. exd4 {[%clk 0:02:59.5]} 12... Bxa3 {[%clk
0:03:07.1]} 13. Bxa3 {[%clk 0:02:54.8]} 13... Qxa3 {[%clk 0:03:09]} 14. Nxd7
{[%clk 0:02:52.9]} 14... Nxd7 {[%clk 0:03:09.5]} 15. Qg4 {[%clk 0:02:52.8]}
15... Nf6 {[%clk 0:03:05.2]} 16. Qh4 {[%clk 0:02:54.1]} 16... Nb4 {[%clk
0:03:05.1]} 17. Qh3 {[%clk 0:02:27.3]} 17... Qb2 {[%clk 0:02:52.1]} 18. Qe3
{[%clk 0:01:14.6]} 1-0

[Event "*** Titled Tuesday 3|2 Blitz"]
[Site "Chess.com"]
[Date "2016.07.05"]
[Round "9"]
[White "LyonBeast"]
[Black "EltajSafarli"]
[Result "1/2-1/2"]
[WhiteElo "2748"]
[BlackElo "2791"]
[TimeControl "180+2"]
[EndTime "12:52:06 PDT"]
[Termination "Game drawn by agreement"]

1. e4 {[%clk 0:03:01.9]} 1... e5 {[%clk 0:03:00.4]} 2. Nf3 {[%clk 0:03:02.7]}
2... Nc6 {[%clk 0:03:01.9]} 3. Bb5 {[%clk 0:03:04.3]} 3... Nf6 {[%clk
0:03:03.3]} 4. O-O {[%clk 0:03:04.2]} 4... Nxe4 {[%clk 0:03:02.7]} 5. d4 {[%clk
0:03:05.1]} 5... Nd6 {[%clk 0:03:03.8]} 6. Bxc6 {[%clk 0:03:06.8]} 6... dxc6
{[%clk 0:03:05.7]} 7. dxe5 {[%clk 0:03:08.5]} 7... Nf5 {[%clk 0:03:07.3]} 8.
Qxd8+ {[%clk 0:03:10.2]} 8... Kxd8 {[%clk 0:03:09.2]} 9. h3 {[%clk 0:03:11.8]}
9... Be6 {[%clk 0:03:07.6]} 10. Nc3 {[%clk 0:03:05.1]} 10... Ke8 {[%clk
0:03:04.7]} 11. g4 {[%clk 0:03:02.5]} 11... Ne7 {[%clk 0:03:04.6]} 12. Nd4
{[%clk 0:03:03.8]} 12... Bd7 {[%clk 0:03:03.3]} 13. f4 {[%clk 0:03:04.9]} 13...
Nd5 {[%clk 0:02:59.9]} 14. f5 {[%clk 0:02:49.5]} 14... Nxc3 {[%clk 0:02:46.2]}
15. bxc3 {[%clk 0:02:51.4]} 15... c5 {[%clk 0:02:47.8]} 16. Nf3 {[%clk
0:02:38.4]} 16... h5 {[%clk 0:02:46.5]} 17. Bg5 {[%clk 0:02:34.1]} 17... Be7
{[%clk 0:02:40.1]} 18. e6 {[%clk 0:01:40.1]} 18... fxe6 {[%clk 0:02:36.2]} 19.
Bxe7 {[%clk 0:01:41.2]} 19... Kxe7 {[%clk 0:02:37.4]} 20. Ne5 {[%clk 0:01:42.5]}
20... hxg4 {[%clk 0:02:00]} 21. Ng6+ {[%clk 0:00:59.6]} 21... Kf6 {[%clk
0:01:58.5]} 22. Nxh8 {[%clk 0:00:58.2]} 22... exf5 {[%clk 0:01:58.5]} 23. hxg4
{[%clk 0:00:53.7]} 23... Rxh8 {[%clk 0:01:58.2]} 24. Rad1 {[%clk 0:00:55.3]}
24... Be6 {[%clk 0:01:54.8]} 25. gxf5 {[%clk 0:00:56.6]} 25... Bxf5 {[%clk
0:01:56.7]} 26. Rd7 {[%clk 0:00:41]} 26... Rh3 {[%clk 0:01:56]} 27. Rxc7 {[%clk
0:00:41.8]} 27... Rxc3 {[%clk 0:01:53.7]} 28. Rf2 {[%clk 0:00:39.6]} 28... b5
{[%clk 0:01:49.1]} 29. Rxa7 {[%clk 0:00:36.4]} 29... g6 {[%clk 0:01:50.2]} 30.
a4 {[%clk 0:00:29.8]} 30... bxa4 {[%clk 0:01:46.8]} 31. Rxa4 {[%clk 0:00:31.7]}
31... Rxc2 {[%clk 0:01:46]} 32. Rxc2 {[%clk 0:00:33.2]} 32... Bxc2 {[%clk
0:01:47.5]} 33. Rc4 {[%clk 0:00:34.9]} 33... Bf5 {[%clk 0:01:47.3]} 34. Rxc5
{[%clk 0:00:36.8]} 34... Kg5 {[%clk 0:01:48.1]} 35. Kf2 {[%clk 0:00:38.2]} 35...
Kf4 {[%clk 0:01:46.5]} 36. Rc4+ {[%clk 0:00:38.6]} 36... Be4 {[%clk 0:01:46.5]}
1/2-1/2

[Event "*** Titled Tuesday 3|2 Blitz"]
[Site "Chess.com"]
[Date "2016.07.05"]
[Round "9"]
[White "Gabrielian_Artur"]
[Black "Sanan_Sjugirov"]
[Result "1-0"]
[WhiteElo "2534"]
[BlackElo "2657"]
[TimeControl "180+2"]
[EndTime "12:52:26 PDT"]
[Termination "Gabrielian_Artur won by resignation"]

1. e4 {[%clk 0:03:01.9]} 1... e5 {[%clk 0:03:00.6]} 2. Nf3 {[%clk 0:03:02.9]}
2... Nc6 {[%clk 0:03:01.9]} 3. Bc4 {[%clk 0:03:04]} 3... Bc5 {[%clk 0:03:01.7]}
4. d3 {[%clk 0:03:04.6]} 4... Nf6 {[%clk 0:03:01.7]} 5. O-O {[%clk 0:03:03.8]}
5... a6 {[%clk 0:03:00.3]} 6. c3 {[%clk 0:03:03]} 6... d6 {[%clk 0:02:56.1]} 7.
a4 {[%clk 0:03:01.1]} 7... Ba7 {[%clk 0:02:55.5]} 8. Bg5 {[%clk 0:03:01.7]} 8...
h6 {[%clk 0:02:55.1]} 9. Bh4 {[%clk 0:03:03]} 9... g5 {[%clk 0:02:51.3]} 10. Bg3
{[%clk 0:03:04.1]} 10... Qe7 {[%clk 0:02:48.3]} 11. b4 {[%clk 0:03:02.2]} 11...
Bg4 {[%clk 0:02:34.9]} 12. Nbd2 {[%clk 0:02:54.3]} 12... Nh5 {[%clk 0:02:21.3]}
13. Kh1 {[%clk 0:02:55.2]} 13... Nf4 {[%clk 0:02:20]} 14. Bxf4 {[%clk
0:02:49.3]} 14... gxf4 {[%clk 0:02:16.3]} 15. b5 {[%clk 0:02:48.9]} 15... Nd8
{[%clk 0:02:07.4]} 16. bxa6 {[%clk 0:02:45.2]} 16... bxa6 {[%clk 0:02:08.3]} 17.
Bxa6 {[%clk 0:02:45.8]} 17... O-O {[%clk 0:02:09.3]} 18. Bc4 {[%clk 0:02:45.8]}
18... Ne6 {[%clk 0:02:04.8]} 19. h3 {[%clk 0:02:37.5]} 19... Bh5 {[%clk
0:02:05.2]} 20. a5 {[%clk 0:02:16.7]} 20... Kh8 {[%clk 0:02:00.3]} 21. Bd5
{[%clk 0:02:10.6]} 21... Rab8 {[%clk 0:01:59.6]} 22. Rb1 {[%clk 0:02:12]} 22...
Ng5 {[%clk 0:01:53.2]} 23. Rxb8 {[%clk 0:02:11.4]} 23... Rxb8 {[%clk 0:01:53.7]}
24. a6 {[%clk 0:01:50]} 24... Qd7 {[%clk 0:01:51.7]} 25. Nxe5 {[%clk 0:01:40.8]}
25... dxe5 {[%clk 0:01:37.6]} 26. Qxh5 {[%clk 0:01:41]} 26... Kg7 {[%clk
0:00:57.3]} 27. Nf3 {[%clk 0:01:25]} 27... f6 {[%clk 0:00:51.7]} 28. Nh4 {[%clk
0:01:16.8]} 28... Rh8 {[%clk 0:00:32.9]} 29. Qg6+ {[%clk 0:01:13.5]} 29... Kf8
{[%clk 0:00:34.1]} 30. Qxf6+ {[%clk 0:01:12.6]} 1-0

[Event "*** Titled Tuesday 3|2 Blitz"]
[Site "Chess.com"]
[Date "2016.07.05"]
[Round "9"]
[White "mwpchess"]
[Black "fireheart92"]
[Result "0-1"]
[WhiteElo "2442"]
[BlackElo "2168"]
[TimeControl "180+2"]
[EndTime "12:52:26 PDT"]
[Termination "fireheart92 won on time"]

1. e4 {[%clk 0:03:01.9]} 1... e5 {[%clk 0:03:00.2]} 2. Nf3 {[%clk 0:03:02]} 2...
Nc6 {[%clk 0:03:01.3]} 3. Bb5 {[%clk 0:03:02.1]} 3... a6 {[%clk 0:03:02.4]} 4.
Ba4 {[%clk 0:03:02.6]} 4... Nf6 {[%clk 0:03:03]} 5. O-O {[%clk 0:03:01.1]} 5...
Nxe4 {[%clk 0:03:02.5]} 6. d4 {[%clk 0:02:58.3]} 6... exd4 {[%clk 0:02:57.2]} 7.
Re1 {[%clk 0:02:55.8]} 7... d5 {[%clk 0:02:58.1]} 8. Nxd4 {[%clk 0:02:47.4]}
8... Bd6 {[%clk 0:02:59]} 9. Nxc6 {[%clk 0:02:44]} 9... Bxh2+ {[%clk 0:02:59.5]}
10. Kh1 {[%clk 0:02:44]} 10... Qh4 {[%clk 0:02:59.6]} 11. Rxe4+ {[%clk 0:02:43]}
11... dxe4 {[%clk 0:03:00.9]} 12. Qd8+ {[%clk 0:02:42.7]} 12... Qxd8 {[%clk
0:03:02.3]} 13. Nxd8+ {[%clk 0:02:43.3]} 13... Kxd8 {[%clk 0:03:03.8]} 14. Kxh2
{[%clk 0:02:42.6]} 14... Be6 {[%clk 0:03:04.4]} 15. Be3 {[%clk 0:02:32.9]} 15...
h6 {[%clk 0:02:59.4]} 16. Bb3 {[%clk 0:02:29.9]} 16... Bxb3 {[%clk 0:02:52.6]}
17. axb3 {[%clk 0:02:29.7]} 17... f5 {[%clk 0:02:50.8]} 18. Ra5 {[%clk
0:02:24.8]} 18... b5 {[%clk 0:02:47.4]} 19. c4 {[%clk 0:02:20.1]} 19... c6
{[%clk 0:02:48.1]} 20. cxb5 {[%clk 0:02:20.6]} 20... cxb5 {[%clk 0:02:48.4]} 21.
Nc3 {[%clk 0:02:20.5]} 21... Kc7 {[%clk 0:02:37.6]} 22. Nd5+ {[%clk 0:02:16.8]}
22... Kb7 {[%clk 0:02:38.7]} 23. Ra1 {[%clk 0:02:11.6]} 23... g5 {[%clk
0:02:38]} 24. b4 {[%clk 0:02:06.4]} 24... Rhd8 {[%clk 0:02:29.1]} 25. Nc3 {[%clk
0:01:46.6]} 25... Rac8 {[%clk 0:02:29.3]} 26. Bc5 {[%clk 0:01:46.7]} 26... Rd2
{[%clk 0:02:29.2]} 27. Rd1 {[%clk 0:01:35.1]} 27... Rcd8 {[%clk 0:02:26.8]} 28.
Rxd2 {[%clk 0:01:21.6]} 28... Rxd2 {[%clk 0:02:26.1]} 29. g4 {[%clk 0:00:59.8]}
29... fxg4 {[%clk 0:02:20.6]} 30. Nxe4 {[%clk 0:01:00.2]} 30... Rxb2 {[%clk
0:02:21.3]} 31. Nf6 {[%clk 0:01:00.2]} 31... Kc6 {[%clk 0:02:14.1]} 32. Nxg4
{[%clk 0:00:43.3]} 32... a5 {[%clk 0:02:12.1]} 33. Nxh6 {[%clk 0:00:27.5]} 33...
a4 {[%clk 0:02:12.1]} 34. Nf5 {[%clk 0:00:20.2]} 34... a3 {[%clk 0:02:06.9]} 35.
Nd4+ {[%clk 0:00:21]} 35... Kd7 {[%clk 0:02:04.6]} 36. Nxb5 {[%clk 0:00:22]}
36... a2 {[%clk 0:02:05.1]} 37. Bd4 {[%clk 0:00:16.4]} 37... a1=Q {[%clk
0:02:05]} 38. Bxb2 {[%clk 0:00:16]} 38... Qxb2 {[%clk 0:02:02.4]} 0-1

[Event "*** Titled Tuesday 3|2 Blitz"]
[Site "Chess.com"]
[Date "2016.07.05"]
[Round "9"]
[White "mortalbovine"]
[Black "hypert"]
[Result "0-1"]
[WhiteElo "1757"]
[BlackElo "2286"]
[TimeControl "180+2"]
[EndTime "12:52:33 PDT"]
[Termination "hypert won by checkmate"]

1. d4 {[%clk 0:03:01.9]} 1... Nf6 {[%clk 0:03:00.1]} 2. c4 {[%clk 0:02:57.6]}
2... e6 {[%clk 0:03:00.8]} 3. Nc3 {[%clk 0:02:58.3]} 3... Bb4 {[%clk 0:03:01.3]}
4. Bd2 {[%clk 0:02:42]} 4... d5 {[%clk 0:02:59.8]} 5. cxd5 {[%clk 0:02:41.5]}
5... exd5 {[%clk 0:03:00.4]} 6. a3 {[%clk 0:02:37.7]} 6... Bxc3 {[%clk
0:02:57.7]} 7. Bxc3 {[%clk 0:02:37]} 7... Ne4 {[%clk 0:02:59.1]} 8. e3 {[%clk
0:02:37.4]} 8... Nxc3 {[%clk 0:02:59.6]} 9. bxc3 {[%clk 0:02:39.3]} 9... O-O
{[%clk 0:02:58.7]} 10. Bd3 {[%clk 0:02:40.4]} 10... c5 {[%clk 0:02:59.6]} 11.
Ne2 {[%clk 0:02:32.4]} 11... Qg5 {[%clk 0:02:59.7]} 12. Ng3 {[%clk 0:02:30.3]}
12... Nd7 {[%clk 0:02:47.6]} 13. O-O {[%clk 0:02:26.2]} 13... Nf6 {[%clk
0:02:48.4]} 14. h3 {[%clk 0:02:18.2]} 14... h5 {[%clk 0:02:43.7]} 15. Qf3 {[%clk
0:02:15]} 15... Be6 {[%clk 0:02:36.6]} 16. Ne2 {[%clk 0:02:00.7]} 16... Rac8
{[%clk 0:02:35]} 17. Rab1 {[%clk 0:01:57.7]} 17... b6 {[%clk 0:02:34.8]} 18.
Rfc1 {[%clk 0:01:57.4]} 18... Rfd8 {[%clk 0:02:29.1]} 19. Qf4 {[%clk 0:01:55.7]}
19... Qxf4 {[%clk 0:02:25.4]} 20. Nxf4 {[%clk 0:01:57.6]} 20... h4 {[%clk
0:02:20.8]} 21. Nxe6 {[%clk 0:01:53.5]} 21... fxe6 {[%clk 0:02:21.2]} 22. Ba6
{[%clk 0:01:53.7]} 22... Rc7 {[%clk 0:02:21.3]} 23. Rb5 {[%clk 0:01:44.2]} 23...
Ne4 {[%clk 0:02:21.5]} 24. f3 {[%clk 0:01:33.5]} 24... Nd6 {[%clk 0:02:10.5]}
25. Rbb1 {[%clk 0:01:30.8]} 25... Rdd7 {[%clk 0:02:01.8]} 26. Bb5 {[%clk
0:01:30.6]} 26... Nxb5 {[%clk 0:02:01.6]} 27. Rxb5 {[%clk 0:01:31.2]} 27... cxd4
{[%clk 0:02:02.6]} 28. exd4 {[%clk 0:01:31.9]} 28... Rc4 {[%clk 0:02:03.7]} 29.
Rb4 {[%clk 0:01:24.8]} 29... Rdc7 {[%clk 0:02:03.4]} 30. Kf2 {[%clk 0:01:20.6]}
30... Rxc3 {[%clk 0:02:01]} 31. Rxc3 {[%clk 0:01:21.3]} 31... Rxc3 {[%clk
0:02:02.9]} 32. Ra4 {[%clk 0:01:22.6]} 32... a5 {[%clk 0:02:03.2]} 33. Ke2
{[%clk 0:01:20.6]} 33... Kf7 {[%clk 0:01:59.5]} 34. Kd2 {[%clk 0:01:20.2]} 34...
Rb3 {[%clk 0:01:58.4]} 35. Kc2 {[%clk 0:01:19.8]} 35... Re3 {[%clk 0:01:58.2]}
36. Kd2 {[%clk 0:01:20.2]} 36... Rb3 {[%clk 0:01:59.3]} 37. Kc2 {[%clk
0:01:21.4]} 37... Rb5 {[%clk 0:01:57.8]} 38. Kd2 {[%clk 0:01:02.8]} 38... Rb2+
{[%clk 0:01:55.4]} 39. Ke3 {[%clk 0:01:01.2]} 39... Rxg2 {[%clk 0:01:47.8]} 40.
Kf4 {[%clk 0:01:02.4]} 40... Kf6 {[%clk 0:01:47.8]} 41. Ke3 {[%clk 0:00:57.6]}
41... Kf5 {[%clk 0:01:48.8]} 42. f4 {[%clk 0:00:51.6]} 42... Rg3+ {[%clk
0:01:49.3]} 43. Kf2 {[%clk 0:00:52.6]} 43... Rxh3 {[%clk 0:01:50.3]} 44. Kg2
{[%clk 0:00:51.8]} 44... Rg3+ {[%clk 0:01:51.5]} 45. Kh2 {[%clk 0:00:51.3]}
45... Kxf4 {[%clk 0:01:52.8]} 46. Rb4 {[%clk 0:00:50.5]} 46... axb4 {[%clk
0:01:53]} 47. axb4 {[%clk 0:00:52.4]} 47... Rb3 {[%clk 0:01:53.7]} 48. b5 {[%clk
0:00:52.9]} 48... Kg4 {[%clk 0:01:54.9]} 49. Kg2 {[%clk 0:00:52.6]} 49... Rb2+
{[%clk 0:01:56.1]} 50. Kh1 {[%clk 0:00:53.7]} 50... Kg3 {[%clk 0:01:56.5]} 51.
Kg1 {[%clk 0:00:54.6]} 51... Rb1# {[%clk 0:01:57.8]} 0-1